Cogmind - Beta 11.1 @@@ ROGUE MODE // 2022.12.05 @ 19:37:25 Player: ILikeGoodFood Result: Destroyed by G-47 Trooper with Particle Gun Performance ------------- Evolutions (3) 1500 Regions Visited (5) 1000 Robots Destroyed (47) 235 Value Destroyed (1377) 1377 Prototype IDs (8) 160 Alien Tech Used (0) 0 Bonus (22) 22 TOTAL SCORE: 4294 Bonus ------- High Alert Combat Kills 22 Cogmind --------- Core Integrity 0/700 Matter 285/300 Energy 24/100 System Corruption 0% Temperature Cool (9) Movement Core (50) Location -7/Factory Parts ------- > --- POWER (2) -------- (None) > --- PROPULSION (4) --- (None) > --- UTILITY (5) ------ Advanced Weight Redist. System Visual Processing Unit Improved Melee Analysis Suite > --- WEAPON (2) ------- Maul > --- INVENTORY (5) ---- Light Nuclear Core Advanced Weight Redist. System Peak State ------------ > --- POWER ------------ Deuterium Engine Light Nuclear Core > --- PROPULSION ------- Xenon Bombardment Thruster Xenon Bombardment Thruster Xenon Bombardment Thruster Xenon Bombardment Thruster > --- UTILITY ---------- Visual Processing Unit Transport Network Coupler Improved Melee Analysis Suite Reaction Control System Hacking Suite > --- WEAPON ----------- Gauss Cannon Katana > --- INVENTORY -------- Improved Flight Unit Improved Flight Unit Improved EM Shotgun Maul Katana [Rating: 43] Favorites ----------- Power Deuterium Engine Engine Deuterium Engine Power Core Light Nuclear Core Propulsion Improved Flight Unit Wheel Compact Wheel Hover Unit Gravmag System Flight Unit Improved Flight Unit Utility Visual Processing Unit Device Weight Redist. System Storage Small Storage Unit Processor Visual Processing Unit Hackware Hacking Suite Protection Light Armor Plating Weapon Katana Ballistic Gun Light Assault Rifle Ballistic Cannon Gauss Cannon Special Weapon Mining Laser Impact Weapon Maul Slashing Weapon Katana Build | -11 -10 -10 -9 -8 -7 ------- Run | Scr Mat Min Mat Mat Fac Slots Evolved 6 | . . . 2 2 2 Power 1 | . . . . 1 . Propulsion 2 | . . . 1 . 1 Utility 3 | . . . 1 1 1 Weapon . | . . . . . . Parts Attached 63 | 6 9 3 7 17 21 Power 14 | 1 . 3 1 5 4 Engine 9 | 1 . 3 1 3 1 Core 5 | . . . . 2 3 Reactor . | . . . . . . Propulsion 16 | 2 3 . 3 1 7 Treads . | . . . . . . Leg . | . . . . . . Wheel 3 | 2 1 . . . . Hover 1 | . . . . . 1 Flight 12 | . 2 . 3 1 6 Utility 19 | 1 3 . 2 7 6 Device 7 | . . . 1 2 4 Storage 1 | 1 . . . . . Processor 4 | . 1 . . 1 2 Hackware 1 | . . . . 1 . Protection 6 | . 2 . 1 3 . Artifact . | . . . . . . Weapon 14 | 2 3 . 1 4 4 Energy Gun . | . . . . . . Energy Cannon . | . . . . . . Ballistic Gun 4 | 2 1 . . 1 . Ballistic Cannon 2 | . . . . . 2 Launcher . | . . . . . . Special Weapon 1 | . . . 1 . . Impact Weapon 3 | . 2 . . . 1 Slashing Weapon 4 | . . . . 3 1 Piercing Weapon . | . . . . . . Special Melee Weapon . | . . . . . . Unidentified Prototypes 1 | . 1 . . . . Parts Lost 24 | . . 1 . 9 14 Power 5 | . . 1 . 2 2 Propulsion 7 | . . . . 1 6 Utility 7 | . . . . 4 3 Weapon 5 | . . . . 2 3 Highest Loss Streak 9 | . . 1 . 5 9 To Critical Strikes . | . . . . . . Average Slot Usage (%) 88 | . 92 100 96 82 83 Engine 9 | . 14 14 11 6 6 Core 1 | . . . . 1 3 Wheel 3 | . 24 . . . . Flight 21 | . 3 28 31 22 20 Device 6 | . . . 10 8 8 Storage 2 | . 13 . . . . Processor 11 | . . 14 11 9 19 Hackware 4 | . . . . 8 6 Protection 6 | . 7 14 9 8 . Ballistic Gun 4 | . 18 14 1 1 . Ballistic Cannon 1 | . . . . . 6 Special Weapon 1 | . . . 9 . . Impact Weapon 5 | . 9 14 11 1 . Slashing Weapon 5 | . . . . 11 7 Naked Turns . | . . . . . . Heaviest Build 24 | 11 15 10 16 21 24 Greatest Support 32 | 26 32 10 21 21 24 Greatest Overweight (x) 3 | . 2 . . . 3 Average Overweight (x) . | . . . . . . Largest Inventory Capacity 8 | 8 8 5 5 5 5 Average Capacity 5 | 7 7 5 5 5 5 Most Carried 8 | 4 8 5 5 5 5 Average Carried 4 | 1 6 4 4 4 4 Final Capacity 8 | 8 5 5 5 5 5 Final Carried 5 | 3 5 5 5 2 2 Class Distribution -------------------- 85% | Mutant 14% | Sprinter Dominant Class ---------------- Mutant | -10/Materials Mutant | -10/Mines Mutant | -9/Materials Mutant | -8/Materials Mutant | -7/Factory Resources | -11 -10 -10 -9 -8 -7 ----------- Run | Scr Mat Min Mat Mat Fac Matter Collected 756 | 253 71 66 45 168 153 Remotely . | . . . . . . Salvage Created 1792 | 26 77 283 45 783 578 Parts 87 | 4 3 6 2 36 36 Haulers Intercepted 4 | . 1 . 1 2 . Recyclers Shooed . | . . . . . . Parts Field Recycled . | . . . . . . Retrieved Matter . | . . . . . . Parts Self-Destructed . | . . . . . . Prevented . | . . . . . . Kills | -11 -10 -10 -9 -8 -7 ------- Run | Scr Mat Min Mat Mat Fac Combat Hostiles Destroyed 29 | . . 6 . 13 10 Melee 21 | . . 1 . 11 9 Guns 1 | . . 1 . . . Cannons 1 | . . . . . 1 Classes Destroyed 12 | 1 2 4 . 2 3 Worker 1 | . . . . . 1 Builder 4 | . . 2 . 2 . Tunneler 7 | 1 . 2 . 3 1 Hauler 4 | . 1 . 1 2 . Recycler 1 | . . 1 . . . Watcher 1 | . 1 . . . . Swarmer 3 | . . 3 . . . Grunt 19 | . . 3 . 10 6 Duelist 3 | . . . . 2 1 Sentry 2 | . . . . 1 1 Hunter 1 | . . . . . 1 Programmer 1 | . . . . . 1 Best Kill Streak 6 | 1 1 6 1 4 4 Combat Bots Only 4 | . . 3 . 3 4 Max Kills in Single Turn 1 | 1 1 1 1 1 1 Gunslinging . | . . . . . . Exploded . | . . . . . . Melee 1 | . . 1 . 1 1 Uniques/NPCs Destroyed . | . . . . . . Combat | -11 -10 -10 -9 -8 -7 -------- Run | Scr Mat Min Mat Mat Fac Damage Taken 2967 | . . 248 . 1258 1461 Core 1087 | . . 72 . 305 710 Absorbed by Shields . | . . . . . . Regen/Repaired (Parts) 75 | . . . 75 . . Core Remaining (%) 78 | 100 . 71 100 44 . Volleys Fired 25 | 1 7 . 13 1 3 Largest 2 | 2 2 . 1 1 1 Hottest 100 | 40 40 . 100 23 48 Shots Fired 28 | 2 8 1 13 1 3 Gun 12 | 2 8 1 . 1 . Cannon 3 | . . . . . 3 Launcher . | . . . . . . Special 13 | . . . 13 . . Kinetic 15 | 2 8 1 . 1 3 Thermal 13 | . . . 13 . . Explosive . | . . . . . . Electromagnetic . | . . . . . . Robot Hit Streak 3 | 1 3 . . . 1 Robot Miss Streak 2 | . 1 2 . . 1 Penetration Max . | . . . . . . Secondary Targets . | . . . . . . Shots Hit Robots 118 | 1 7 16 1 60 33 Core Hits 42 | 1 2 2 1 21 15 Critical Kills 1 | . . 1 . . . Critical Parts Destroyed 6 | . 1 4 . 1 . Critical Strikes 20 | . 1 5 . 10 4 Smash 7 | . 1 5 . 1 . Sever 13 | . . . . 9 4 Melee Attacks 135 | . 2 18 1 82 32 Impact 32 | . 2 18 1 10 1 Slashing 103 | . . . . 72 31 Piercing . | . . . . . . Sneak Attacks 18 | . . 6 1 8 3 Combat Hostiles 1 | . . . . . 1 Follow-up Attacks 6 | . . . . 6 . Damage Inflicted 4702 | 12 125 971 121 2298 1175 Guns 65 | 12 43 10 . . . Cannons 49 | . . . . . 49 Explosions . | . . . . . . Melee 4588 | . 82 961 121 2298 1126 Ramming . | . . . . . . Kinetic 114 | 12 43 10 . . 49 Thermal . | . . . . . . Explosive . | . . . . . . Electromagnetic . | . . . . . . Impact 1662 | . 82 961 121 448 50 Slashing 2926 | . . . . 1850 1076 Piercing . | . . . . . . Highest Corruption 1 | . 1 1 . . . Average Corruption 1 | . 1 1 . . . Corruption Purged . | . . . . . . Corruption Blocked . | . . . . . . Effects 3 | . 1 2 . . . Message Errors 1 | . . 1 . . . Energy Discharges 1 | . 1 . . . . Misfires 1 | . . 1 . . . Overload Shots . | . . . . . . Overflow Damage 859 | . 56 505 . 272 26 Projectiles . | . . . . . . Explosions . | . . . . . . Melee 859 | . 56 505 . 272 26 Knockbacks 5 | . . 2 . 3 . Impact 5 | . . 2 . 3 . Kinetic . | . . . . . . Secondary . | . . . . . . Self-Inflicted Damage . | . . . . . . Shots . | . . . . . . Rammed . | . . . . . . Targets Rammed . | . . . . . . Kicked . | . . . . . . Crushed . | . . . . . . Highest Temperature 157 | . 3 13 157 22 17 Average Temperature 38 | . 3 6 54 8 3 Received Heat Transfer 1461 | . . 132 . 684 645 Siege Activations . | . . . . . . Robots Corrupted . | . . . . . . Combat Hostiles . | . . . . . . Parts Fried 19 | . . 14 . 5 . Impact Corruptions 25 | . 1 16 . 8 . Robots Melted . | . . . . . . Combat Hostiles . | . . . . . . Parts Melted . | . . . . . . Heat Transferred . | . . . . . . Parts Sabotaged . | . . . . . . Parts Stolen . | . . . . . . Parts Stripped . | . . . . . . Power Chain Reactions . | . . . . . . Missiles Intercepted . | . . . . . . Alert | -11 -10 -10 -9 -8 -7 ------- Run | Scr Mat Min Mat Mat Fac Peak Influence 440 | 5 62 234 193 440 285 Initial 140 | . 3 24 91 81 140 Average 152 | 1 33 123 137 217 192 Maximum Alert Level 2 | . . 1 . 2 1 Low Security (%) 69 | 100 100 90 100 44 50 Level 1 28 | . . 9 . 51 49 Level 2 1 | . . . . 4 . Level 3 . | . . . . . . Level 4 . | . . . . . . Level 5 . | . . . . . . High Security . | . . . . . . Max Security . | . . . . . . Squads Dispatched 4 | . 1 . . . 3 Investigation 1 | . . . . . 1 Extermination 1 | . . . . . 1 Reinforcement 2 | . 1 . . . 1 Assault . | . . . . . . Garrison . | . . . . . . Intercept . | . . . . . . Searches Triggered . | . . . . . . Construction Impeded . | . . . . . . Haulers Reinforced . | . . . . . . Active Scanning Responses . | . . . . . . Cargo Convoy Interrupts . | . . . . . . Stealth | -11 -10 -10 -9 -8 -7 --------- Run | Scr Mat Min Mat Mat Fac Distress Signals 6 | . . . . 4 2 Communications Jammed . | . . . . . . Distress Signals . | . . . . . . Times Spotted 58 | . 5 10 . 26 17 Peak Tracking Total 9 | . 2 5 . 6 9 Tactical Retreats 6 | . 1 2 . 3 . Traps | -11 -10 -10 -9 -8 -7 ------- Run | Scr Mat Min Mat Mat Fac Traps Triggered 3 | . 1 . . . 2 Indirectly . | . . . . . . Trap Hack Attempts . | . . . . . . Triggered . | . . . . . . Disarmed . | . . . . . . Reprogrammed . | . . . . . . Reused . | . . . . . . Traps Extracted . | . . . . . . Installed . | . . . . . . Triggered . | . . . . . . Machines | -11 -10 -10 -9 -8 -7 ---------- Run | Scr Mat Min Mat Mat Fac Machines Disabled . | . . . . . . Max in Single Turn . | . . . . . . Garrison Access 1 | . . . . . 1 Machines Sabotaged . | . . . . . . Garrisons Compromised . | . . . . . . Overloaded Fab Kills . | . . . . . . Hacking | -11 -10 -10 -9 -8 -7 --------- Run | Scr Mat Min Mat Mat Fac Machines Accessed 11 | . 2 . 3 2 4 Terminals 6 | . 1 . 1 2 2 Fabricators . | . . . . . . Repair Stations 1 | . . . 1 . . Recycling Units 2 | . 1 . . . 1 Scanalyzers 1 | . . . 1 . . Garrison Access 1 | . . . . . 1 Total Hacks 29 | . 3 . 13 6 7 Successful 21 | . 2 . 10 3 6 Failed 8 | . 1 . 3 3 1 Catastrophic . | . . . . . . Database Lockouts . | . . . . . . Manual 7 | . . . 2 4 1 Terminals 13 | . 2 . 2 6 3 Fabricators . | . . . . . . Repair Stations 5 | . . . 5 . . Recycling Units 3 | . 1 . . . 2 Scanalyzers 6 | . . . 6 . . Garrison Access 2 | . . . . . 2 Terminal Hacks 8 | . 1 . 1 3 3 Record 2 | . . . . . 2 Robot Analysis 1 | . 1 . . . . Prototype ID Bank 3 | . . . 1 2 . Open DSF 1 | . . . . . 1 Hauler Manifests 1 | . . . . 1 . Fabricator Hacks . | . . . . . . Repair Station Hacks 4 | . . . 4 . . Scan Component 2 | . . . 2 . . Repair 2 | . . . 2 . . Recycling Unit Hacks 3 | . 1 . . . 2 Report Inventory 2 | . 1 . . . 1 Retrieve Components 1 | . . . . . 1 Scanalyzer 5 | . . . 5 . . Insert Component 3 | . . . 3 . . Analyze 2 | . . . 2 . . Garrison Access Hacks 1 | . . . . . 1 Seal Access 1 | . . . . . 1 Unauthorized Hacks . | . . . . . . Terminals . | . . . . . . Fabricators . | . . . . . . Repair Stations . | . . . . . . Recycling Units . | . . . . . . Scanalyzers . | . . . . . . Garrison Access . | . . . . . . Data Cores Recovered . | . . . . . . Used . | . . . . . . Hacking Detections 7 | . 1 . 3 2 1 Full Trace Events . | . . . . . . Feedback Events . | . . . . . . Feedback Blocked . | . . . . . . Robot Schematics Acquired . | . . . . . . Robots Built . | . . . . . . Authchips . | . . . . . . Time . | . . . . . . Total Robot Build Rating . | . . . . . . Part Schematics Acquired 2 | . . . 2 . . Parts Built . | . . . . . . Authchips . | . . . . . . Time . | . . . . . . Total Part Build Rating . | . . . . . . Parts Repaired 2 | . . . 2 . . Time 77 | . . . 77 . . Parts Recycled . | . . . . . . Recycled Matter . | . . . . . . Retrieved Matter . | . . . . . . Retrieved Components 3 | . . . . . 3 Parts Scanalyzed 3 | . . . 3 . . Part Schematics Acquired 2 | . . . 2 . . Parts Damaged . | . . . . . . Bothacking | -11 -10 -10 -9 -8 -7 ------------ Run | Scr Mat Min Mat Mat Fac Used RIF Installer . | . . . . . . Robots Hacked . | . . . . . . Non-combat . | . . . . . . Combat . | . . . . . . Robot Hacks Applied . | . . . . . . Relay Couplers Released . | . . . . . . Fabnet Peak Effective % . | . . . . . . Robots Rewired . | . . . . . . Allies Hacked . | . . . . . . Hacks Repelled . | . . . . . . Allies | -11 -10 -10 -9 -8 -7 -------- Run | Scr Mat Min Mat Mat Fac Total Allies . | . . . . . . Largest Group . | . . . . . . Highest-Rated Group . | . . . . . . Highest-Rated Ally . | . . . . . . Total Orders . | . . . . . . Ally Attacks . | . . . . . . Total Damage . | . . . . . . Kills . | . . . . . . Allies Corrupted . | . . . . . . Allies Melted . | . . . . . . Intel | -11 -10 -10 -9 -8 -7 ------- Run | Scr Mat Min Mat Mat Fac Robot Analysis Total 1 | . 1 . . . . Derelict Logs Recovered . | . . . . . . Drone Launches . | . . . . . . Drone Recoveries . | . . . . . . Exploration | -11 -10 -10 -9 -8 -7 ------------- Run | Scr Mat Min Mat Mat Fac Turns Passed 1822 | 72 272 170 295 484 529 Spaces Moved 2041 | 62 239 252 317 608 563 Core 12 | 8 . . . . 4 Treads . | . . . . . . Legs . | . . . . . . Wheels 260 | 54 206 . . . . Hover 27 | . . . . . 27 Flight 1742 | . 33 252 317 608 532 Fastest Speed 29 | 50 37 37 34 32 29 Average Speed 51 | 84 92 37 34 35 64 Slowest Speed 280 | 90 180 37 34 37 280 Overloaded Moves . | . . . . . . Propulsion Burnouts . | . . . . . . Robots Hopped 2 | . . 1 . 1 . Cave-ins Triggered . | . . . . . . Exploration Rate (%) 27 | 3 47 48 23 32 13 Regions Visited 5 Branch Regions 1 Pre-discovered Areas . | . . . . . . Known Exits Taken . | . . . . . . Unknown Exits Taken 5 | 1 1 1 1 1 . Scrap Searched 1 | . . 1 . . . Spaces Dug 13 | . . . 13 . . Terrain Destroyed 13 | . . . 13 . . Melee . | . . . . . . Projectile 13 | . . . 13 . . AOE . | . . . . . . Terrain Rammed . | . . . . . . Walls Destroyed . | . . . . . . Machines Disabled . | . . . . . . Actions | -11 -10 -10 -9 -8 -7 --------- Run | Scr Mat Min Mat Mat Fac Total 2548 | 79 279 291 462 760 677 Wait 220 | . 3 14 118 46 39 Move 2032 | 61 238 249 316 605 563 Hop 2 | . . 1 . 1 . Pick Up 44 | 10 9 3 3 7 12 Fast Attach 22 | . 5 1 4 7 5 Attach 26 | 6 . 1 2 9 8 Detach 3 | . . . 1 2 . Swap 15 | . 4 1 1 1 8 Drop 33 | 1 11 3 3 8 7 Fire 25 | 1 7 . 13 1 3 Melee 126 | . 2 18 1 73 32 Ram . | . . . . . . Kick . | . . . . . . Crush . | . . . . . . Escape Stasis . | . . . . . . Rewire . | . . . . . . Trap . | . . . . . . Miscellaneous . | . . . . . . Route ------- -11/Scrapyard -10/Materials (discovered 2 exits: *Mat / [*Min]) -10/Mines -9/Materials (discovered 2 exits: *Mat / [*Min]) -8/Materials -7/Factory History --------- Turn | Location | Event 15 | -11/Scrapyard | Discovered new exit (range 16) 73 | -11/Scrapyard | Entered Materials 237 | -10/Materials | Discovered new exit (range 5) 307 | -10/Materials | Discovered new exit (range 14) 309 | -10/Materials | Build established: Mutant 345 | -10/Materials | Entered Mines 425 | -10/Mines | Discovered new exit (range 4) 515 | -10/Mines | Entered Materials 515 | -9/Materials | Evolved 2 slots: Propulsion x1, Utility x1 727 | -9/Materials | Repaired Imp. Flight Unit 754 | -9/Materials | Repaired Lgt. Armor Plating 766 | -9/Materials | Discovered new exit (range 16) 797 | -9/Materials | Discovered new exit (range 16) 810 | -9/Materials | Entered another Materials area 810 | -8/Materials | Evolved 2 slots: Power x1, Utility x1 998 | -8/Materials | Lost 5 parts (1p1n2u1w) 1270 | -8/Materials | Core integrity fell below 50% 1288 | -8/Materials | Discovered new exit (range 18) 1294 | -8/Materials | Entered Factory 1294 | -7/Factory | Evolved 2 slots: Propulsion x1, Utility x1 1335 | -7/Factory | Identified exit to DSF 1679 | -7/Factory | Lost 4 parts (3n1u) 1797 | -7/Factory | Core integrity fell below 50% 1807 | -7/Factory | Core integrity fell below 20% 1823 | -7/Factory | Destroyed by G-47 Trooper with Particle Gun Last Messages --------------- K-01 Serf destroyed. K-01 Serf collects debris. K-01 Serf cleans the Fusion Modulator. K-01 Serf cleans the Nuclear Reactor. Katana destroyed. K-01 Serf cleans the Nuclear Reactor. K-01 Serf collects debris. K-01 Serf cleans the Fusion Modulator. Katana destroyed. K-01 Serf collects debris. K-01 Serf cleans the Nuclear Reactor. Critical hit (Burn: +37). K-01 Serf collects debris. K-01 Serf suffers critical hit (Burn). K-01 Serf destroyed. K-01 Serf collects debris. Acquired Lgt. Nuclear Core. K-01 Serf destroyed. K-01 Serf collects debris. R-06 Scavenger collects Particle Gun. Map ----- +----------------------------------------------------+ | " #???????######## #####+###### | | " #??????????????# #??????????? | | #??????????????# #??????????? | | ####??????????????# #??????????? | | ??????????????????# #??????????? | | ??????????????????# #??????????? | | ??????????????????# #??????????? | | ??????????????????# #####+### #??????????? | | ??????????????????# ## [ # #??????????? | | ??????????????????# ## # #??????????? | | ??????????????????# ## """ # #??????????? | | ??????????????????# /% """ # #??????????? | | ??????????????????# ## %""" # #??????????? | | ???????????????#??# ## # #??????????? | | ???????????????? ?# ##[ # #??????????? | | ???????????????? # ## # #??????????? | | ????????????????? # ## "" # #??????????? | | ??????????????????+ ## """ # ##?????????? | | ??????????????????# ## S" # T#?????????? | | ??????????????????# ##%=""" # #?????????? | | ??????????????????# ## *""" # ##?????????? | | ??????????????????# ##%!%*[!#[ #??????????? | | ??????????????????# #########% ##########?? | | ??????????????????# ! = % | | ??????????????????# k%=[%* ###?? | | ??????????????????# [%@=* #???? | | ??????????????????# g**%/% #???? | | ??????????????????# %=%!= w #???? | | ??????????????????# k g ##################+###???? | | ??????????????????# r #????????????????????????? | | ???????????????? u= #????????????????????????? | | ????????????? r #????????????????????????? | | ??????????? """ k """ #????????????????????????? | | ????????????""" """ #????????????????????????? | | ?????????????"" """ #????????????????????????? | | ???????????? u #????????????????????????? | | ????????????""" ?? ?????????????????????????? | | ????????????""" ?? ?????????????????????????? | | ?????????????"" ????!! ?????????????????????????? | | ???????????????????!!! ?????????????????????????? | | ????????????????????!! ?????????????????????????? | | ???????????????????? ?????????????????????????? | | ???????????????????? ?????????????????????????? | | ????????????????????? ?????????????????????????? | | ?????????????????????????????????????????????????? | | ?????????????????????????????????????????????????? | | ?????????????????????????????????????????????????? | | ?????????????????????????????????????????????????? | | ?????????????????????????????????????????????????? | | ?????????????????????????????????????????????????? | +----------------------------------------------------+ Best States ------------- Heat Dissipation 34 Energy Generation 23 Energy Capacity 335 Matter Stores 300 Matter Capacity 300 Sight Range 18 Terrain Scan Density 10 Additional Mass Support 9 Armor Coverage 225 Evasion (%) 72 Melee Accuracy 6 Offensive Hacking 10 Item Schematics ----------------- Weight Redist. System | -9/Materials | Scanalyzed Imp. Assault Rifle | -9/Materials | Scanalyzed Robot Schematics ------------------ None Fabricated ------------ Nothing Alien Tech Used ----------------- None Achievements -------------- None Challenges ------------ None Game ------ Seed FortressClaymoresSlayer Manual? 0 Play Time 00:46:57 Cumulative 38.4 hours Start 2022.12.05 @ 18:46:10 End 2022.12.05 @ 19:37:25 Sessions 1 Manual Loads 0 Difficulty Rogue Special Mode None Game No. 63 Rogue 63 Adventurer 0 Explorer 0 Win Type - Total 0 Types 0/0/0/0/0/0/0/0/0 Lore% 22 Gallery% 29 Achievement% 22 Wizard Run 0 Options --------- ASCII 0 Keyboard 0 Movement Mouse Keybinds 0 Fullscreen 2 Font 18/SmallcapsGlow Map View 76x50 Tactical HUD 0 Map Filters NONE Filters NONE Steam 1 RUN: 55e469ad-415f-4a71-a0c3-1126056547ce